Cogmind - Beta 13 @@@ ROGUE MODE // 2024.05.17 @ 21:37:35 Player: Lunace Result: Destroyed by PD-WC84BKQ5D0 with Advanced Micro-nuke Launcher Performance ------------- Evolutions (7) 3500 Regions Visited (29) 5800 Robots Destroyed (230) 1150 Value Destroyed (10924) 10924 Prototype IDs (53) 1060 Alien Tech Used (2) 400 Bonus (6995) 6995 TOTAL SCORE: 29829 Bonus ------- High Alert Combat Kills 1800 Follower Combat Kills 695 Met Data Miner 300 Met Imprinter 300 Met Zhirov 300 Met Warlord at Base 500 MAIN.C Attacked Warlord 500 Warlord Defense Kills 402 Scanned by Researcher 500 Acquired SGEMP 2000 Friendly Fire -302 Cogmind --------- Core Integrity 0/1300 Matter 145/300 Energy 840/840 System Corruption 24% Temperature Cool (0) Movement Walking (120) Location -3/Testing Parts ------- > --- POWER (2) -------- Light Antimatter Reactor Light Antimatter Reactor > --- PROPULSION (5) --- Flexi-carbon Leg Flexi-carbon Leg Myomer Leg Myomer Leg Myomer Leg > --- UTILITY (10) ----- Large Storage Unit Experimental Energy Well Structural Scanner Experimental Signal Interpreter 0b10 Decoder Chip [Generic] Experimental Target Analyzer Experimental System Shield Advanced Corruption Screen > --- WEAPON (4) ------- Disintegrator Hypervelocity Gauss Cannon Plasma Lance (fused) > --- INVENTORY (15) --- Flexi-carbon Leg Wheel Wheel Hypervelocity Gauss Cannon Hypervelocity Gauss Cannon Hypervelocity Gauss Cannon Improved Plasma Cutter SGEMP Prototype Peak State ------------ > --- POWER ------------ Vortex Chain Reactor > --- PROPULSION ------- Myomer Leg Myomer Leg Myomer Leg Enhanced Biometal Leg Enhanced Biometal Leg > --- UTILITY ---------- Large Storage Unit Experimental Energy Well Experimental Signal Interpreter 0b10 Decoder Chip [Generic] Experimental Target Analyzer Light Regenerative Plating Thermal Barrier Improved Energy Mantle System Mapper Experimental System Shield > --- WEAPON ----------- Vortex Rail Vortex Rail Perforator > --- INVENTORY -------- Particle Reactor Particle Reactor Centrium Wheel Improved Weapon Cycler Advanced Focal Shield Advanced Corruption Screen Long-range Tractor Beam Improved Recalibrator Transdimensional Reconstructor Advanced KE Penetrator Advanced KE Penetrator Hardcell Cannon Hardcell Cannon Gamma Bomb Array Improved Plasma Cutter [Rating: 188] Favorites ----------- Power Light Fission Core Engine Light Angular Momentum Engine Power Core Light Fission Core Reactor Vortex Chain Reactor Propulsion Myomer Leg Treads Light Treads Leg Myomer Leg Wheel Armored Huge Wheel Hover Unit Combat Airjet Flight Unit Impulse Thruster Array Utility Experimental Signal Interpreter Device Tactical Coordination Suite Storage Medium Storage Unit Processor Experimental Signal Interpreter Hackware Experimental System Shield Protection Light Regenerative Plating Weapon Advanced KE Penetrator Energy Gun Vortex Shotgun Energy Cannon Plasma Cannon Ballistic Gun Advanced KE Penetrator Ballistic Cannon Mini Assault Cannon Launcher Long-range Missile Launcher Special Weapon RU-N14's Throwing Claymores Slashing Weapon Power Sword Piercing Weapon Plasma Lance Build | -11 -10 -10 -10 -9 -8 -7 -7 -7 -7 -6 -6 -6 -6 -6 -6 -6 -5 -5 -5 -5 -5 -4 -4 -4 -4 -4 -3 -3 -3 ------- Run | Yrd Mat Min Exi Min Mat Fac Low Low Dat Pro Fac Was Fac Low Low Zio Pro Fac Upp Upp Zhi Pro Fac Upp Upp War Pro Res Tes Slots Evolved 14 | . . . . . 4 2 . . . . 2 . . . . . . 2 . . . . 2 . . . . 2 . Power 1 | . . . . . . . . . . . . . . . . . . 1 . . . . . . . . . . . Propulsion 3 | . . . . . 2 . . . . . . . . . . . . . . . . . 1 . . . . . . Utility 8 | . . . . . 2 1 . . . . 1 . . . . . . 1 . . . . 1 . . . . 2 . Weapon 2 | . . . . . . 1 . . . . 1 . . . . . . . . . . . . . . . . . . Parts Attached 279 | 6 6 10 1 . 12 13 1 . . 7 9 7 20 5 1 12 . 8 . 5 5 3 25 3 5 20 3 18 74 Power 31 | 1 1 1 . . 1 1 . . . 1 1 1 3 1 . 1 . 1 . 2 2 . 3 . 1 1 . . 8 Engine 7 | 1 . 1 . . 1 . . . . . 1 . 1 1 . . . . . . . . . . . . . . 1 Core 11 | . 1 . . . . 1 . . . 1 . 1 1 . . 1 . 1 . 2 1 . . . 1 . . . . Reactor 13 | . . . . . . . . . . . . . 1 . . . . . . . 1 . 3 . . 1 . . 7 Propulsion 87 | 2 . 6 . . 3 3 . . . . 6 . 7 . . 2 . 2 . . 2 1 8 . . 6 3 6 30 Treads 2 | 2 . . . . . . . . . . . . . . . . . . . . . . . . . . . . . Leg 56 | . . 4 . . . . . . . . 4 . 4 . . 2 . 2 . . 1 1 6 . . 6 3 6 17 Wheel 15 | . . . . . . . . . . . . . 3 . . . . . . . . . 2 . . . . . 10 Hover 11 | . . 2 . . 2 3 . . . . 1 . . . . . . . . . 1 . . . . . . . 2 Flight 3 | . . . . . 1 . . . . . 1 . . . . . . . . . . . . . . . . . 1 Utility 79 | 1 3 . 1 . 3 4 . . . 2 2 2 6 3 . 8 . 2 . 1 1 . 3 2 1 8 . 8 18 Device 35 | . . . . . 2 1 . . . 1 . 1 3 1 . . . 1 . . . . 2 . . 5 . 5 13 Storage 10 | 1 . . 1 . . . . . . . 1 . 1 1 . . . . . . . . . 1 . . . 1 3 Processor 17 | . 2 . . . 1 1 . . . . 1 . 1 1 . 6 . 1 . 1 . . . . . 1 . . 1 Hackware 3 | . . . . . . . . . . . . . . . . 1 . . . . . . 1 . . 1 . . . Protection 14 | . 1 . . . . 2 . . . 1 . 1 1 . . 1 . . . . 1 . . 1 1 1 . 2 1 Artifact . | . . . . . . . . . . . . . . . . . . . . . . . . . . . . . . Weapon 82 | 2 2 3 . . 5 5 1 . . 4 . 4 4 1 1 1 . 3 . 2 . 2 11 1 3 5 . 4 18 Energy Gun 21 | . . . . . . . . . . . . . 1 . 1 . . 1 . . . 1 4 1 2 5 . 2 3 Energy Cannon 5 | . . . . . . . . . . . . . 2 . . . . 2 . . . . . . . . . . 1 Ballistic Gun 26 | 2 2 3 . . 3 1 . . . 2 . 4 1 . . . . . . . . . 1 . 1 . . 2 4 Ballistic Cannon 11 | . . . . . . 3 . . . . . . . . . . . . . 1 . . 1 . . . . . 6 Launcher 10 | . . . . . 2 1 1 . . 2 . . . 1 . . . . . . . 1 1 . . . . . 1 Special Weapon 6 | . . . . . . . . . . . . . . . . 1 . . . 1 . . 3 . . . . . 1 Impact Weapon . | . . . . . . . . . . . . . . . . . . . . . . . . . . . . . . Slashing Weapon 2 | . . . . . . . . . . . . . . . . . . . . . . . 1 . . . . . 1 Piercing Weapon 1 | . . . . . . . . . . . . . . . . . . . . . . . . . . . . . 1 Special Melee Weapon . | . . . . . . . . . . . . . . . . . . . . . . . . . . . . . . Unidentified Prototypes 31 | . . . . . 1 1 . . . . 1 . . . . 6 . . . . 3 . 1 . . 9 . . 9 Parts Lost 70 | . . 6 . . . . . . . 3 . 7 . 2 . . . . . 1 . . 8 . . . . . 43 Power 10 | . . 1 . . . . . . . . . 1 . 1 . . . . . . . . 1 . . . . . 6 Propulsion 23 | . . 2 . . . . . . . 2 . 3 . . . . . . . . . . 3 . . . . . 13 Utility 17 | . . . . . . . . . . . . 2 . 1 . . . . . 1 . . 1 . . . . . 12 Weapon 20 | . . 3 . . . . . . . 1 . 1 . . . . . . . . . . 3 . . . . . 12 Highest Loss Streak 14 | . . 5 . . . . . . . 2 . 7 . 1 . . . . . 1 . . 3 . . . . . 14 To Critical Strikes 4 | . . . . . . . . . . . . . . . . . . . . . . . 1 . . . . . 3 Average Slot Usage (%) 92 | . 98 99 100 100 89 99 100 100 100 93 84 55 65 95 100 99 100 98 97 99 97 92 91 93 92 93 94 94 79 Engine 1 | . 5 5 14 14 9 . . . . . . 1 . 3 6 . . . . . . . . . . . . . . Core 3 | . 8 8 . . . 6 7 7 7 7 5 1 1 . . 5 6 9 11 11 6 . . . 1 3 . . . Reactor 2 | . . . . . . . . . . . . . 4 2 . . . . . . 1 5 7 5 5 5 5 4 5 Treads 1 | . 28 16 . . . . . . . . . . . . . . . . . . . . . . . . . . . Leg 16 | . . 5 . . . . . . . . 2 11 5 26 26 26 26 23 23 23 23 23 20 26 26 26 26 22 12 Hover 5 | . . 5 28 28 29 30 30 30 30 23 15 . . . . . . . . . . . . . . . . . . Device 7 | . . . . . 14 10 7 7 7 11 13 10 5 5 6 . . 1 5 5 5 5 7 5 5 6 10 14 11 Storage 5 | . 14 14 14 14 9 7 7 7 7 7 6 1 4 1 6 6 6 5 5 5 5 5 5 5 5 5 5 4 5 Processor 15 | . 12 14 14 14 9 14 7 7 7 7 12 13 15 25 20 20 20 21 17 16 17 17 15 15 11 11 15 14 14 Hackware 4 | . . . . . . . . . . . . . . . . 5 6 5 5 5 5 5 9 10 6 6 10 9 7 Protection 4 | . . . . . . 4 15 15 15 10 6 1 4 6 6 5 6 5 5 5 5 5 2 5 8 7 . 3 1 Energy Gun 4 | . . . . . . . . . . . . . 2 . 4 6 6 1 5 5 5 9 7 9 10 9 10 7 3 Energy Cannon 2 | . . . . . . . . . . . . . 5 13 8 2 . 8 5 5 5 4 . . . . . . . Ballistic Gun 6 | . 28 27 28 28 14 7 3 . . 2 . 7 4 6 6 6 6 . . . . . 3 5 5 5 5 6 3 Ballistic Cannon 3 | . . . . . . 10 15 15 15 15 13 6 . . . . . . . 4 5 5 4 5 5 5 5 3 2 Launcher 2 | . . . . . 3 3 3 7 7 4 6 . . 2 6 6 6 5 5 4 . . 1 . . . . . . Naked Turns . | . . . . . . . . . . . . . . . . . . . . . . . . . . . . . . Heaviest Build 117 | 11 14 14 17 17 31 40 42 42 42 42 57 56 49 51 51 48 46 58 58 69 69 66 70 67 101 117 111 117 115 Greatest Support 135 | 40 40 40 24 24 39 42 42 42 42 42 60 60 67 67 67 67 67 69 69 69 69 76 118 118 118 135 135 135 135 Greatest Overweight (x) 7 | . . . . . . . . . . 1 2 . 1 . . . . . . . 1 . 2 . . . . 1 7 Average Overweight (x) . | . . . . . . . . . . . . . . . . . . . . . . . . . . . . . 1 Largest Inventory Capacity 15 | 8 8 8 10 10 10 10 10 10 10 10 15 15 5 10 10 10 10 10 10 10 10 10 10 15 15 15 15 15 15 Average Capacity 10 | 7 8 8 8 10 10 10 10 10 10 10 10 7 5 5 10 10 10 10 10 10 10 10 10 13 15 15 15 15 14 Most Carried 15 | 2 8 8 5 4 10 10 10 10 10 10 10 9 5 6 8 10 10 10 10 10 10 10 10 10 15 15 15 15 15 Average Carried 9 | . 5 5 3 4 9 9 10 10 10 9 9 4 3 4 7 9 10 9 10 9 9 10 9 9 12 14 14 13 11 Final Capacity 15 | 8 8 8 10 10 10 10 10 10 10 10 15 5 5 10 10 10 10 10 10 10 10 10 10 15 15 15 15 15 15 Final Carried 15 | 2 8 2 4 4 10 10 10 10 10 9 9 3 5 6 8 10 10 10 10 10 10 10 10 10 15 14 15 13 9 Class Distribution -------------------- 35% | Gunner 24% | Hacker-Gunner 12% | Mutant 7% | Tank 3% | Scavenger-Gunner 3% | Hacker-Tank 3% | Derelict-Gunner Dominant Class ---------------- Mutant | -10/Materials Mutant | -10/Mines Mutant | -10/Exiles Mutant | -9/Mines Scavenger-Mutant | -8/Materials Gunner | -7/Factory Tank | -7/Lower Caves Tank | -7/Lower Caves Tank | -7/Data Miner Tank | -6/Proximity Caves Gunner | -6/Factory Mutant | -6/Waste Mutant | -6/Factory Gunner | -6/Lower Caves Gunner | -6/Lower Caves Gunner | -6/Zion Gunner | -5/Proximity Caves Gunner | -5/Factory Gunner | -5/Upper Caves Gunner | -5/Upper Caves Derelict-Gunner | -5/Zhirov Derelict-Gunner | -4/Proximity Caves Hacker-Gunner | -4/Factory Hacker-Gunner | -4/Upper Caves Derelict-Tank | -4/Upper Caves Commander-Tank | -4/Warlord Hacker-Gunner | -3/Proximity Caves Hacker-Gunner | -3/Research Hacker-Tank | -3/Testing Resources | -11 -10 -10 -10 -9 -8 -7 -7 -7 -7 -6 -6 -6 -6 -6 -6 -6 -5 -5 -5 -5 -5 -4 -4 -4 -4 -4 -3 -3 -3 ----------- Run | Yrd Mat Min Exi Min Mat Fac Low Low Dat Pro Fac Was Fac Low Low Zio Pro Fac Upp Upp Zhi Pro Fac Upp Upp War Pro Res Tes Matter Collected 7201 | 222 151 211 10 . 333 432 113 . . 173 153 250 87 474 180 80 85 205 10 72 . 111 855 50 112 211 118 764 1739 Remotely 1390 | . . . . . 333 . . . . . . 250 . . . . . . . . . . 339 . . . . . 468 Salvage Created 8964 | . 180 128 . . 477 358 278 . . 95 41 211 151 421 169 . 104 224 92 108 . 132 1552 . 183 166 134 1647 2113 Parts 405 | . 12 5 . . 26 26 7 . . 5 5 . 13 17 5 . 9 9 1 9 . . 71 . 7 6 3 84 85 Haulers Intercepted 1 | . . . . . . . . . . . . . . . . . . . . . . . . . . . . 1 . Recyclers Shooed 5 | . . . . . 1 . . . . . . . . . . . . 1 . . . . 1 . . . . 2 . Parts Field Recycled . | . . . . . . . . . . . . . . . . . . . . . . . . . . . . . . Retrieved Matter . | . . . . . . . . . . . . . . . . . . . . . . . . . . . . . . Parts Self-Destructed 75 | . . . . . . . 6 . . 5 . . . 14 7 1 5 . 1 7 . . . . 9 . 20 . . Prevented 11 | . . . . . . . . . . . . . . 2 3 1 2 . . . . . . . 3 . . . . Kills | -11 -10 -10 -10 -9 -8 -7 -7 -7 -7 -6 -6 -6 -6 -6 -6 -6 -5 -5 -5 -5 -5 -4 -4 -4 -4 -4 -3 -3 -3 ------- Run | Yrd Mat Min Exi Min Mat Fac Low Low Dat Pro Fac Was Fac Low Low Zio Pro Fac Upp Upp Zhi Pro Fac Upp Upp War Pro Res Tes Combat Hostiles Destroyed 167 | . 4 3 . . 12 4 9 . . 5 4 1 . 9 3 . 10 1 3 5 . 3 29 . 3 3 3 25 28 Melee 10 | . . . . . . . . . . . . . . . . . . . . . . . 1 . . . . . 9 Guns 45 | . 4 3 . . 3 . . . . . . 1 . 1 2 . . . . . . . 7 . 2 . 2 15 5 Cannons 42 | . . . . . . 4 3 . . 2 . . . 7 . . . 1 1 1 . 2 7 . 1 1 1 2 9 AOE 67 | . . . . . 9 . 6 . . 3 4 . . . . . 10 . 2 4 . 1 13 . . 2 . 8 5 Classes Destroyed 22 | . 2 1 . . 3 2 3 . . 1 . 1 1 . 1 . . . . . . . 2 . . . . 2 3 Worker 21 | . . . . . 3 1 . . . . . . 1 . . . . . . . . . 6 . . . . 10 . Builder 16 | . . . . . . 2 . . . . . . 2 . . . . . . . . . 6 . . . . 5 1 Tunneler 1 | . . . . . . . . . . . . . 1 . . . . . . . . . . . . . . . . Hauler 1 | . . . . . . . . . . . . . . . . . . . . . . . . . . . . 1 . Recycler 9 | . . . . . 1 1 . . . . . . . . . . . 1 . . . . 2 . . . . 2 2 Mechanic 1 | . . . . . . . . . . . . . . . . . . . . . . . . . . . . . 1 Operator 3 | . . . . . . 1 . . . . . . 1 . . . . . . . . . 1 . . . . . . Watcher 11 | . 1 . . . 1 2 . . . . . . 1 . . . . 1 . . . . 3 . . . . 1 1 Swarmer 32 | . . . . . . . 2 . . 3 4 . . 4 . . 10 . . 4 . . 3 . . . . 2 . Grunt 55 | . 4 2 . . 8 . 2 . . . . . . 3 1 . . . 3 . . 3 2 . 2 3 1 9 12 Brawler 3 | . . . . . . . 1 . . . . . . 1 . . . . . . . . 1 . . . . . . Duelist 5 | . . . . . . . 3 . . . . . . . . . . . . . . . 2 . . . . . . Protector 2 | . . . . . . . . . . . . . . . . . . . . . . . 1 . . . . 1 . Sentry 17 | . . . . . 4 4 1 . . . . . . 1 . . . . . 1 . . 3 . . . 1 2 . Demolisher 1 | . . 1 . . . . . . . . . . . . . . . . . . . . . . . . . . . Specialist 3 | . . . . . . . . . . . . . . . . . . . . . . . . . . . . . 3 Hunter 24 | . . . . . . . . . . 2 . . . . 2 . . 1 . . . . 12 . . . 1 . 6 Programmer 21 | . . . . . . . . . . . . . . . . . . . . . . . 5 . 1 . . 10 5 Behemoth 1 | . . . . . . . . . . . . . . . . . . . . . . . . . . . . 1 . Compactor 1 | . . . . . . . . . . . . 1 . . . . . . . . . . . . . . . . . Striker 2 | . . . . . . . . . . . . . . . . . . . . . . . . . . . . . 2 Tinkerer 1 | . . . . . . . . . . . . . . . 1 . . . . . . . . . . . . . . Best Kill Streak 14 | . 2 2 . . 10 3 9 . . 3 4 1 3 4 3 . 5 1 3 4 . 3 14 . 2 3 1 8 4 Combat Bots Only 9 | . 2 2 . . 7 1 9 . . 3 4 1 . 4 3 . 5 1 3 4 . 3 7 . 2 3 1 5 4 Max Kills in Single Turn 4 | . 1 1 . . 3 3 3 . . 2 2 1 2 1 1 . 3 1 2 3 . 1 4 . 1 3 1 4 2 Gunslinging 1 | . . . . . . . . . . . . . . . . . . . . . . . . . . . . 1 . Exploded 4 | . . . . . 2 . 2 . . 2 2 . . . . . 3 . 2 3 . 1 4 . . 2 . 2 2 Melee 1 | . . . . . . . . . . . . . . . . . . . . . . . 1 . . . . . 1 Uniques/NPCs Destroyed . | . . . . . . . . . . . . . . . . . . . . . . . . . . . . . . Combat | -11 -10 -10 -10 -9 -8 -7 -7 -7 -7 -6 -6 -6 -6 -6 -6 -6 -5 -5 -5 -5 -5 -4 -4 -4 -4 -4 -3 -3 -3 -------- Run | Yrd Mat Min Exi Min Mat Fac Low Low Dat Pro Fac Was Fac Low Low Zio Pro Fac Upp Upp Zhi Pro Fac Upp Upp War Pro Res Tes Hostile Shots Fired 1164 | . 18 57 . 13 33 36 17 . . 45 5 7 9 99 10 . 15 6 5 2 . 20 171 . 25 9 34 126 402 Missed 384 | . 2 21 . 7 12 17 12 . . 6 4 1 3 34 3 . 9 3 3 . . 4 61 . 9 2 19 44 108 Damage Taken 14286 | . 177 943 . 60 320 152 146 . . 631 13 249 48 875 154 . 103 44 35 115 . 338 2138 . 354 145 157 1200 5889 Core 2294 | . . 159 . . 43 11 59 . . 32 . 79 28 126 48 . 12 . . 20 . 37 312 . . . 26 161 1141 Absorbed by Shields 1665 | . . . . . . . . . . 26 5 13 . . . . . . . . . . . . . 140 149 958 374 Ignored by Resistances 425 | . . . . . . . . . . . . . . . . . . . . . . . . . . . . . 425 Regen/Repaired (Parts) 1616 | . . . . . . . . . . . . . 66 135 12 364 . . . 42 . 42 63 92 117 70 . 288 325 Core Remaining (%) 77 | 100 . . . 36 92 . . . . 85 . . . . . . 65 . . . . 94 . . . . 70 . . Volleys Fired 389 | . 19 19 . . 22 14 5 . . 16 3 11 5 31 15 . 4 7 3 3 . 7 65 . 5 1 8 54 72 Largest 4 | . 2 2 . . 2 3 3 . . 3 1 4 3 3 3 . 1 2 1 3 . 3 4 . 4 4 4 4 4 Hottest 265 | . 40 40 . . 72 124 132 . . 124 36 152 220 220 190 . 43 180 . 228 . 228 265 . 255 216 216 216 190 Shots Fired 867 | . 38 38 . . 39 37 14 . . 32 3 38 13 64 25 . 4 14 3 5 . 11 148 . 19 4 26 172 120 Gun 495 | . 38 38 . . 21 16 1 . . 8 . 21 4 24 6 . . . . 1 . 2 91 . 14 3 18 132 57 Cannon 290 | . . . . . . 20 10 . . 16 . 17 9 33 10 . . 14 . 2 . 5 39 . 5 1 8 40 61 Launcher 68 | . . . . . 18 1 3 . . 8 3 . . 7 9 . 4 . . 2 . . 11 . . . . . 2 Special 14 | . . . . . . . . . . . . . . . . . . . 3 . . 4 7 . . . . . . Kinetic 539 | . 38 38 . . 21 36 11 . . 24 . 38 . 13 4 . . . . 1 . 3 85 . 10 2 16 114 85 Thermal 145 | . . . . . . . . . . . . . 9 33 12 . . 14 . 2 . 4 45 . 5 . . . 21 Explosive 80 | . . . . . 18 1 3 . . 8 3 . . 7 9 . 4 . 3 2 . 4 18 . . . . . . Electromagnetic 21 | . . . . . . . . . . . . . 4 11 . . . . . . . . . . 4 . . . 2 Entropic 82 | . . . . . . . . . . . . . . . . . . . . . . . . . . 2 10 58 12 Robot Hit Streak 17 | . 5 7 . . 6 8 10 . . 3 3 17 6 12 5 . 3 6 5 4 . 8 12 . 3 5 7 8 13 Robot Miss Streak 11 | . 4 5 . . 2 6 . . . 4 . 1 2 4 2 . 1 2 . 1 . 2 8 . 2 3 2 6 11 Penetration Max 3 | . . . . . 1 . . . . . . . . . 1 . . . . . . . 1 . . . . 3 1 Secondary Targets 5 | . . 1 . . . . . . . . . . . . . . . . . . . . . . . . . 3 1 Max Gunslinging Chain 1 | . . 1 . . . . . . . . . . . . . . . . . . . . . . . . . 1 1 Shots Hit Robots 572 | . 22 20 . . 24 17 10 . . 12 2 33 5 33 11 . 3 9 3 4 . 8 101 . 10 3 19 102 121 Core Hits 438 | . 9 7 . . 40 15 20 . . 11 7 6 8 13 6 . 12 6 5 6 . 7 82 . 6 8 11 79 74 Critical Kills 22 | . . . . . . . . . . . . . 1 . 1 . . . . . . . 5 . . . 1 2 12 Critical Parts Destroyed 58 | . . . . . . . . . . . . . . . . . . . . . . . 6 . 1 1 2 25 23 Critical Strikes 130 | . . . . . . . . . . 2 . 1 1 . 1 . . . 1 . . 2 21 . 1 2 4 31 63 Burn 5 | . . . . . . . . . . . . . . . . . . . . . . . 4 . . . . . 1 Meltdown 2 | . . . . . . . . . . . . . 1 . 1 . . . . . . . . . . . . . . Destroy 74 | . . . . . . . . . . . . 1 . . . . . . . . . . 11 . 1 . 2 13 46 Blast 16 | . . . . . . . . . . 2 . . . . . . . . . . . . 4 . . 1 1 4 4 Sever 5 | . . . . . . . . . . . . . . . . . . . 1 . . 2 2 . . . . . . Impale 9 | . . . . . . . . . . . . . . . . . . . . . . . . . . . . . 9 Detonate 19 | . . . . . . . . . . . . . . . . . . . . . . . . . . 1 1 14 3 Melee Attacks 50 | . . . . . . . . . . . . . . . . . . . . . . . 7 . . . . . 43 Impact . | . . . . . . . . . . . . . . . . . . . . . . . . . . . . . . Slashing 7 | . . . . . . . . . . . . . . . . . . . . . . . 7 . . . . . . Piercing 43 | . . . . . . . . . . . . . . . . . . . . . . . . . . . . . 43 Sneak Attacks 3 | . . . . . . . . . . . . . . . . . . . . . . . 3 . . . . . . Combat Hostiles 1 | . . . . . . . . . . . . . . . . . . . . . . . 1 . . . . . . Follow-up Attacks . | . . . . . . . . . . . . . . . . . . . . . . . . . . . . . . Damage Inflicted 30971 | . 251 260 . . 1849 765 680 . . 542 272 816 352 797 275 . 829 273 720 502 . 781 7472 . 296 588 907 6896 4848 Guns 9780 | . 251 260 . . 317 157 19 . . 31 . 398 55 308 67 . . . . 24 . 49 1743 . 163 166 660 4049 1063 Cannons 5498 | . . . . . . 243 218 . . 170 . 418 104 489 208 . . 273 . 61 . 124 845 . 133 43 103 650 1416 Explosions 13318 | . . . . . 1532 365 443 . . 341 272 . 193 . . . 829 . 615 417 . 506 4309 . . 352 144 2190 810 Melee 1938 | . . . . . . . . . . . . . . . . . . . . . . . 379 . . . . . 1559 Ramming 34 | . . . . . . . . . . . . . . . . . . . . . . . . . . 27 . 7 . Kinetic 8664 | . 251 260 . . 317 400 237 . . 201 . 816 . 148 49 . . . . 33 . 69 1791 . 162 69 270 1762 1829 Thermal 6297 | . . . . . . 302 . . . . . . 104 489 226 . . 273 . 52 . 104 1247 . 102 352 144 1896 1006 Explosive 9081 | . . . . . 1532 63 443 . . 341 272 . . . . . 829 . 615 417 . 506 3859 . . . . 204 . Electromagnetic 694 | . . . . . . . . . . . . . 248 160 . . . . . . . . . . 32 . . 90 164 Impact . | . . . . . . . . . . . . . . . . . . . . . . . . . . . . . . Slashing 782 | . . . . . . . . . . . . . . . . . . . 105 . . 102 575 . . . . . . Piercing 1559 | . . . . . . . . . . . . . . . . . . . . . . . . . . . . . 1559 Entropic 3860 | . . . . . . . . . . . . . . . . . . . . . . . . . . 140 493 2937 290 Highest Corruption 24 | . . . . . . . . . . . . 20 20 15 15 15 . . . . . . 1 1 2 2 . 6 24 Average Corruption 11 | . . . . . . . . . . . . 10 17 15 15 15 . . . . . . 1 1 1 2 . 5 15 Corruption Purged 5 | . . . . . . . . . . . . . 5 . . . . . . . . . . . . . . . . Corruption Blocked 15 | . . . . . . . . . . . . . . . . . . . . . . . . . . . . . 15 Effects 178 | . . . . . . . . . . . . 3 33 31 19 2 . . . . . . 2 2 1 . . 38 47 Message Errors 39 | . . . . . . . . . . . . . 7 7 6 2 . . . . . . . . . . . 5 12 Matter Fused 45 | . . . . . . . . . . . . . 11 10 3 . . . . . . . 1 1 . . . 8 11 Heat Flow Errors 23 | . . . . . . . . . . . . 1 5 2 5 . . . . . . . 1 . . . . 3 6 Energy Discharges 23 | . . . . . . . . . . . . . 7 3 3 . . . . . . . . . 1 . . 6 3 Parts Rejected 3 | . . . . . . . . . . . . . . . . . . . . . . . . . . . . . 3 Parts Fused 2 | . . . . . . . . . . . . . . 1 . . . . . . . . . . . . . . 1 Data Loss (minor) 20 | . . . . . . . . . . . . 1 . 5 2 . . . . . . . . . . . . 9 3 Data Loss (major) 8 | . . . . . . . . . . . . 1 1 1 . . . . . . . . . 1 . . . 1 3 Misfires 5 | . . . . . . . . . . . . . 1 1 . . . . . . . . . . . . . 3 . Alerts 1 | . . . . . . . . . . . . . . 1 . . . . . . . . . . . . . . . Misdirections 2 | . . . . . . . . . . . . . . . . . . . . . . . . . . . . . 2 Weapon Failures 7 | . . . . . . . . . . . . . 1 . . . . . . . . . . . . . . 3 3 Overload Shots . | . . . . . . . . . . . . . . . . . . . . . . . . . . . . . . Overflow Damage 856 | . . . . . 25 60 . . . 3 11 . 3 . . . 51 24 . 30 . . 300 . 10 . . 119 220 Projectiles 130 | . . . . . . . . . . . . . 3 . . . . 24 . . . . 3 . 10 . . 40 50 Explosions 590 | . . . . . 25 60 . . . 3 11 . . . . . 51 . . 30 . . 273 . . . . 79 58 Melee 136 | . . . . . . . . . . . . . . . . . . . . . . . 24 . . . . . 112 Knockbacks 39 | . . . . . . . 1 . . 1 . . . . . . . . . . . 1 8 . 1 . 1 4 22 Impact . | . . . . . . . . . . . . . . . . . . . . . . . . . . . . . . Kinetic 37 | . . . . . . . 1 . . 1 . . . . . . . . . . . 1 8 . 1 . 1 3 21 Secondary 2 | . . . . . . . . . . . . . . . . . . . . . . . . . . . . 1 1 Self-Inflicted Damage 689 | . . . . . . . 59 . . 2 . . 4 . 34 . 22 . . 83 . . 20 . . 66 . 374 25 Shots 18 | . . . . . . . 3 . . 1 . . 1 . 1 . 1 . . 2 . . 1 . . 1 . 6 1 Rammed . | . . . . . . . . . . . . . . . . . . . . . . . . . . . . . . Targets Rammed 3 | . . . . . . . . . . . . . . . . . . . . . . . . . . 2 . 1 . Kicked 3 | . . . . . . . . . . . . . . . . . . . . . . . . . . 2 . 1 . Crushed . | . . . . . . . . . . . . . . . . . . . . . . . . . . . . . . Highest Temperature 469 | . 20 33 . . 51 3 6 . . . . 103 276 396 214 . . 246 . 171 . 311 445 . 228 133 266 242 469 Average Temperature 116 | . 8 9 . . 20 2 3 . . . . 49 91 157 71 . . 101 . 71 . 171 165 . 106 67 113 41 154 Received Heat Transfer 1810 | . 117 219 . 18 225 54 36 . . . . . 12 108 . . . . 9 . . 99 54 . 75 14 24 212 534 Effects 14 | . . . . . . . . . . . . . . 7 . . . . . . . . 5 . . . . . 2 Shutdowns 1 | . . . . . . . . . . . . . . . . . . . . . . . . . . . . . 1 Energy Bleed 2 | . . . . . . . . . . . . . . . . . . . . . . . 2 . . . . . . Interference 6 | . . . . . . . . . . . . . . 4 . . . . . . . . 2 . . . . . . Matter Decay 4 | . . . . . . . . . . . . . . 2 . . . . . . . . 1 . . . . . 1 Short Circuit 1 | . . . . . . . . . . . . . . 1 . . . . . . . . . . . . . . . Siege Activations . | . . . . . . . . . . . . . . . . . . . . . . . . . . . . . . Robots Corrupted 1 | . . . . . . . . . . . . . . 1 . . . . . . . . . . . . . . . Combat Hostiles 1 | . . . . . . . . . . . . . . 1 . . . . . . . . . . . . . . . Parts Fried 2 | . . . . . . . . . . . . . 1 1 . . . . . . . . . . . . . . . Impact Corruptions . | . . . . . . . . . . . . . . . . . . . . . . . . . . . . . . Robots Melted 3 | . . . . . . . . . . . . . 1 . 1 . . . . . . . 1 . . . . . . Combat Hostiles 2 | . . . . . . . . . . . . . . . 1 . . . . . . . 1 . . . . . . Parts Melted 17 | . . . . . . 1 . . . . . . 3 2 4 . . . . . . . 5 . . 1 . 1 . Heat Transferred 6755 | . . . . . . 250 . . . . . . 200 950 450 . . 370 . 74 . 148 1619 . 111 201 100 1275 1007 Parts Sabotaged . | . . . . . . . . . . . . . . . . . . . . . . . . . . . . . . Parts Stolen . | . . . . . . . . . . . . . . . . . . . . . . . . . . . . . . Parts Stripped . | . . . . . . . . . . . . . . . . . . . . . . . . . . . . . . Power Chain Reactions 1 | . . . . . . . . . . . . . 1 . . . . . . . . . . . . . . . . Alert | -11 -10 -10 -10 -9 -8 -7 -7 -7 -7 -6 -6 -6 -6 -6 -6 -6 -5 -5 -5 -5 -5 -4 -4 -4 -4 -4 -3 -3 -3 ------- Run | Yrd Mat Min Exi Min Mat Fac Low Low Dat Pro Fac Was Fac Low Low Zio Pro Fac Upp Upp Zhi Pro Fac Upp Upp War Pro Res Tes Peak Influence 1058 | . 177 60 . . 519 605 . . . . 117 16 283 . . . . 199 . . . . 1058 . . . . 982 945 Initial 552 | . . . . . . 235 . . . . . . 10 . . . . 138 . . . . 44 . . . . 120 552 Average 335 | . 67 16 . . 189 286 . . . . 71 7 98 . . . . 165 . . . . 517 . . . . 446 749 Maximum Alert Level 3 | . . . . . 2 2 . . . . . . 1 . . . . . . . . . 3 . . . . 3 3 Low Security (%) 45 | 100 100 100 . 100 69 7 . . . . 100 100 72 . . . . 100 . . . . 27 . . . . 18 . Level 1 15 | . . . . . 7 82 . . . . . . 27 . . . . . . . . . 6 . . . . 16 . Level 2 21 | . . . . . 23 10 . . . . . . . . . . . . . . . . 32 . . . . 48 34 Level 3 17 | . . . . . . . . . . . . . . . . . . . . . . . 33 . . . . 15 65 Level 4 . | . . . . . . . . . . . . . . . . . . . . . . . . . . . . . . Level 5 . | . . . . . . . . . . . . . . . . . . . . . . . . . . . . . . High Security . | . . . . . . . . . . . . . . . . . . . . . . . . . . . . . . Max Security . | . . . . . . . . . . . . . . . . . . . . . . . . . . . . . . Squads Dispatched 28 | . 1 . . . 1 1 . . . . . . 2 . . . . . . . . . 5 . 1 . . 7 10 Investigation 4 | . 1 . . . . . . . . . . . 1 . . . . . . . . . 1 . . . . . 1 Extermination 11 | . . . . . . 1 . . . . . . 1 . . . . . . . . . 1 . . . . 4 4 Reinforcement 11 | . . . . . 1 . . . . . . . . . . . . . . . . . 2 . . . . 3 5 Assault 2 | . . . . . . . . . . . . . . . . . . . . . . . 1 . 1 . . . . Garrison . | . . . . . . . . . . . . . . . . . . . . . . . . . . . . . . Intercept . | . . . . . . . . . . . . . . . . . . . . . . . . . . . . . . Searches Triggered . | . . . . . . . . . . . . . . . . . . . . . . . . . . . . . . Data Miner Redirects 1 | . . . . . . . . . . . . . 1 . . . . . . . . . . . . . . . . Construction Impeded 5 | . . . . . . . . . . . . . . . . . . . . . . . 1 . . . . 1 3 Haulers Reinforced 1 | . . . . . . . . . . . . . . . . . . . . . . . 1 . . . . . . Active Scanning Responses . | . . . . . . . . . . . . . . . . . . . . . . . . . . . . . . Cargo Convoy Interrupts . | . . . . . . . . . . . . . . . . . . . . . . . . . . . . . . Stealth | -11 -10 -10 -10 -9 -8 -7 -7 -7 -7 -6 -6 -6 -6 -6 -6 -6 -5 -5 -5 -5 -5 -4 -4 -4 -4 -4 -3 -3 -3 --------- Run | Yrd Mat Min Exi Min Mat Fac Low Low Dat Pro Fac Was Fac Low Low Zio Pro Fac Upp Upp Zhi Pro Fac Upp Upp War Pro Res Tes Distress Signals 5 | . . . . . 1 1 . . . . . . . . . . . . . . . . 2 . . . . 1 . Communications Jammed . | . . . . . . . . . . . . . . . . . . . . . . . . . . . . . . Distress Signals . | . . . . . . . . . . . . . . . . . . . . . . . . . . . . . . Times Spotted 286 | . 11 4 . 7 19 8 9 . . 5 4 6 3 9 3 . 10 2 3 2 . 3 33 . 14 28 11 51 41 Peak Tracking Total 12 | . 3 3 . 7 7 6 9 . . 3 4 5 1 4 2 . 5 1 3 1 . 3 9 . 10 12 4 7 7 Tactical Retreats 10 | . . . . . 1 2 . . . . . . 1 . . . . . . . . . . . 1 . . 1 4 Traps | -11 -10 -10 -10 -9 -8 -7 -7 -7 -7 -6 -6 -6 -6 -6 -6 -6 -5 -5 -5 -5 -5 -4 -4 -4 -4 -4 -3 -3 -3 ------- Run | Yrd Mat Min Exi Min Mat Fac Low Low Dat Pro Fac Was Fac Low Low Zio Pro Fac Upp Upp Zhi Pro Fac Upp Upp War Pro Res Tes Traps Triggered 7 | . 1 . . . . . . . . . 1 . . . . . . . . . . . 1 . . . . 1 3 Indirectly 2 | . . . . . . . . . . . . . . . . . . . . . . . . . . . . . 2 Trap Hack Attempts . | . . . . . . . . . . . . . . . . . . . . . . . . . . . . . . Triggered . | . . . . . . . . . . . . . . . . . . . . . . . . . . . . . . Disarmed . | . . . . . . . . . . . . . . . . . . . . . . . . . . . . . . Reprogrammed . | . . . . . . . . . . . . . . . . . . . . . . . . . . . . . . Reused . | . . . . . . . . . . . . . . . . . . . . . . . . . . . . . . Traps Extracted . | . . . . . . . . . . . . . . . . . . . . . . . . . . . . . . Installed . | . . . . . . . . . . . . . . . . . . . . . . . . . . . . . . Triggered 21 | . . . . . . . . . . . . . . 1 2 . 2 . . . . . . . 3 13 . . . Objects Rigged 5 | . . . . . . . . . . . . . . . . . . . . . . . 5 . . . . . . Exploded 2 | . . . . . . . . . . . . . . . . . . . . . . . 2 . . . . . . Machines | -11 -10 -10 -10 -9 -8 -7 -7 -7 -7 -6 -6 -6 -6 -6 -6 -6 -5 -5 -5 -5 -5 -4 -4 -4 -4 -4 -3 -3 -3 ---------- Run | Yrd Mat Min Exi Min Mat Fac Low Low Dat Pro Fac Was Fac Low Low Zio Pro Fac Upp Upp Zhi Pro Fac Upp Upp War Pro Res Tes Machines Disabled 49 | . . . . . 1 9 2 . . . . . 15 . . . . . . . . . 9 . . . . 7 6 Max in Single Turn 9 | . . . . . 1 9 1 . . . . . 4 . . . . . . . . . 3 . . . . 1 2 Garrison Access 2 | . . . . . . . . . . . . . . . . . . . . . . . 1 . . . . 1 . Machines Repaired . | . . . . . . . . . . . . . . . . . . . . . . . . . . . . . . Machines Dismantled . | . . . . . . . . . . . . . . . . . . . . . . . . . . . . . . Machines Sabotaged . | . . . . . . . . . . . . . . . . . . . . . . . . . . . . . . Overloaded Fab Kills . | . . . . . . . . . . . . . . . . . . . . . . . . . . . . . . Hacking | -11 -10 -10 -10 -9 -8 -7 -7 -7 -7 -6 -6 -6 -6 -6 -6 -6 -5 -5 -5 -5 -5 -4 -4 -4 -4 -4 -3 -3 -3 --------- Run | Yrd Mat Min Exi Min Mat Fac Low Low Dat Pro Fac Was Fac Low Low Zio Pro Fac Upp Upp Zhi Pro Fac Upp Upp War Pro Res Tes Machines Accessed 60 | . 3 . 1 . 3 7 . . 3 . 2 . 7 . . . . . . 1 8 . 8 1 . 3 . 10 3 Terminals 27 | . 3 . . . 3 5 . . . . 1 . 3 . . . . . . 1 . . 5 . . . . 5 1 Fabricators 4 | . . . . . . 1 . . . . . . 1 . . . . . . . . . 1 . . . . 1 . Repair Stations 7 | . . . . . . . . . . . . . 2 . . . . . . . . . 1 . . . . 2 2 Recycling Units 3 | . . . . . . . . . . . 1 . . . . . . . . . . . 1 . . . . 1 . Scanalyzers 1 | . . . . . . 1 . . . . . . . . . . . . . . . . . . . . . . . Garrison Access 2 | . . . . . . . . . . . . . 1 . . . . . . . . . . . . . . 1 . Total Hacks 237 | . 11 . 1 . 9 16 . . 23 . 4 . 17 . . . . . . 1 47 . 55 5 . 5 . 35 8 Successful 148 | . 5 . 1 . 4 6 . . 23 . 2 . 7 . . . . . . 1 47 . 21 5 . 5 . 18 3 Failed 89 | . 6 . . . 5 10 . . . . 2 . 10 . . . . . . . . . 34 . . . . 17 5 Catastrophic 18 | . . . . . . 2 . . . . 1 . 1 . . . . . . . . . 9 . . . . 4 1 Database Lockouts . | . . . . . . . . . . . . . . . . . . . . . . . . . . . . . . Manual 96 | . 8 . . . 7 11 . . . . 4 . 7 . . . . . . . . . 30 . . 1 . 25 3 Terminals 107 | . 11 . . . 9 12 . . . . 2 . 7 . . . . . . 1 . . 41 . . . . 21 3 Fabricators 13 | . . . . . . 2 . . . . . . 3 . . . . . . . . . 6 . . . . 2 . Repair Stations 17 | . . . . . . . . . . . . . 5 . . . . . . . . . 3 . . . . 4 5 Recycling Units 12 | . . . . . . . . . . . 2 . . . . . . . . . . . 5 . . . . 5 . Scanalyzers 2 | . . . . . . 2 . . . . . . . . . . . . . . . . . . . . . . . Garrison Access 5 | . . . . . . . . . . . . . 2 . . . . . . . . . . . . . . 3 . Terminal Hacks 98 | . 1 . 1 . . 1 . . 23 . . . 1 . . . . . . 1 47 . 9 5 . 5 . 4 . Record 48 | . . . 1 . . . . . 2 . . . . . . . . . . 1 35 . . 5 . 4 . . . Part Schematic 16 | . . . . . . . . . 12 . . . . . . . . . . . 4 . . . . . . . . Robot Schematic 6 | . . . . . . . . . 6 . . . . . . . . . . . . . . . . . . . . Robot Analysis 4 | . . . . . . . . . . . . . . . . . . . . . 4 . . . . . . . . Prototype ID Bank 10 | . 1 . . . . . . . 3 . . . . . . . . . . . 4 . 2 . . . . . . Open Door 1 | . . . . . . . . . . . . . . . . . . . . . . . . . . 1 . . . Branch Access Points 4 | . . . . . . 1 . . . . . . 1 . . . . . . . . . 1 . . . . 1 . Alert Level 1 | . . . . . . . . . . . . . . . . . . . . . . . 1 . . . . . . Unreport Threat 4 | . . . . . . . . . . . . . . . . . . . . . . . 4 . . . . . . Recall Extermination 1 | . . . . . . . . . . . . . . . . . . . . . . . . . . . . 1 . Zone Layout 3 | . . . . . . . . . . . . . . . . . . . . . . . 1 . . . . 2 . Fabricator Hacks 5 | . . . . . . 1 . . . . . . 2 . . . . . . . . . 2 . . . . . . Network Status 1 | . . . . . . 1 . . . . . . . . . . . . . . . . . . . . . . . Load Schematic 2 | . . . . . . . . . . . . . 1 . . . . . . . . . 1 . . . . . . Build 2 | . . . . . . . . . . . . . 1 . . . . . . . . . 1 . . . . . . Repair Station Hacks 10 | . . . . . . . . . . . . . 2 . . . . . . . . . 1 . . . . 4 3 Scan Component 6 | . . . . . . . . . . . . . 1 . . . . . . . . . 1 . . . . 2 2 Repair 4 | . . . . . . . . . . . . . 1 . . . . . . . . . . . . . . 2 1 Recycling Unit Hacks 1 | . . . . . . . . . . . . . . . . . . . . . . . . . . . . 1 . Report Inventory 1 | . . . . . . . . . . . . . . . . . . . . . . . . . . . . 1 . Scanalyzer 1 | . . . . . . 1 . . . . . . . . . . . . . . . . . . . . . . . Insert Component 1 | . . . . . . 1 . . . . . . . . . . . . . . . . . . . . . . . Garrison Access Hacks 1 | . . . . . . . . . . . . . . . . . . . . . . . . . . . . 1 . Seal Access 1 | . . . . . . . . . . . . . . . . . . . . . . . . . . . . 1 . Unauthorized Hacks 32 | . 4 . . . 4 3 . . . . 2 . 2 . . . . . . . . . 9 . . . . 8 . Terminals 26 | . 4 . . . 4 3 . . . . . . 2 . . . . . . . . . 7 . . . . 6 . Botnet 21 | . 3 . . . 3 3 . . . . . . 2 . . . . . . . . . 5 . . . . 5 . Detonate 1 | . . . . . . . . . . . . . . . . . . . . . . . 1 . . . . . . Operators 4 | . 1 . . . 1 . . . . . . . . . . . . . . . . . 1 . . . . 1 . Fabricators . | . . . . . . . . . . . . . . . . . . . . . . . . . . . . . . Repair Stations . | . . . . . . . . . . . . . . . . . . . . . . . . . . . . . . Recycling Units 6 | . . . . . . . . . . . 2 . . . . . . . . . . . 2 . . . . 2 . Monitor 3 | . . . . . . . . . . . 1 . . . . . . . . . . . 1 . . . . 1 . Recyclers 3 | . . . . . . . . . . . 1 . . . . . . . . . . . 1 . . . . 1 . Scanalyzers . | . . . . . . . . . . . . . . . . . . . . . . . . . . . . . . Garrison Access . | . . . . . . . . . . . . . . . . . . . . . . . . . . . . . . Data Cores Recovered 3 | . . . . . . 1 . . . . . . 1 . . . . . . . . . 1 . . . . . . Used . | . . . . . . . . . . . . . . . . . . . . . . . . . . . . . . Hacking Detections 40 | . 3 . . . 3 7 . . . . 2 . 7 . . . . . . . . . 7 . . . . 9 2 Full Trace Events 3 | . . . . . 1 . . . . . . . 1 . . . . . . . . . 1 . . . . . . Feedback Events . | . . . . . . . . . . . . . . . . . . . . . . . . . . . . . . Feedback Blocked . | . . . . . . . . . . . . . . . . . . . . . . . . . . . . . . Robot Schematics Acquired 8 | . . . . . . . . . 6 . . . . . . 2 . . . . . . . . . . . . . Robots Built . | . . . . . . . . . . . . . . . . . . . . . . . . . . . . . . Authchips . | . . . . . . . . . . . . . . . . . . . . . . . . . . . . . . Time . | . . . . . . . . . . . . . . . . . . . . . . . . . . . . . . Total Robot Build Rating . | . . . . . . . . . . . . . . . . . . . . . . . . . . . . . . Part Schematics Acquired 31 | . . . . . . . . . 12 . . . . . . 15 . . . . 4 . . . . . . . . Parts Built 1 | . . . . . . . . . . . . . 1 . . . . . . . . . . . . . . . . Authchips . | . . . . . . . . . . . . . . . . . . . . . . . . . . . . . . Time 228 | . . . . . . . . . . . . . 152 . . . . . . . . . 76 . . . . . . Total Part Build Rating 5 | . . . . . . . . . . . . . 5 . . . . . . . . . . . . . . . . Parts Repaired 4 | . . . . . . . . . . . . . 1 . . . . . . . . . . . . . . 2 1 Time 194 | . . . . . . . . . . . . . 86 . . . . . . . . . . . . . . 95 13 Parts Recycled . | . . . . . . . . . . . . . . . . . . . . . . . . . . . . . . Recycled Matter . | . . . . . . . . . . . . . . . . . . . . . . . . . . . . . . Retrieved Matter . | . . . . . . . . . . . . . . . . . . . . . . . . . . . . . . Retrieved Components . | . . . . . . . . . . . . . . . . . . . . . . . . . . . . . . Parts Scanalyzed 1 | . . . . . . 1 . . . . . . . . . . . . . . . . . . . . . . . Part Schematics Acquired . | . . . . . . . . . . . . . . . . . . . . . . . . . . . . . . Parts Damaged . | . . . . . . . . . . . . . . . . . . . . . . . . . . . . . . Bothacking | -11 -10 -10 -10 -9 -8 -7 -7 -7 -7 -6 -6 -6 -6 -6 -6 -6 -5 -5 -5 -5 -5 -4 -4 -4 -4 -4 -3 -3 -3 ------------ Run | Yrd Mat Min Exi Min Mat Fac Low Low Dat Pro Fac Was Fac Low Low Zio Pro Fac Upp Upp Zhi Pro Fac Upp Upp War Pro Res Tes Used RIF Installer . | . . . . . . . . . . . . . . . . . . . . . . . . . . . . . . Robots Hacked . | . . . . . . . . . . . . . . . . . . . . . . . . . . . . . . Non-combat . | . . . . . . . . . . . . . . . . . . . . . . . . . . . . . . Combat . | . . . . . . . . . . . . . . . . . . . . . . . . . . . . . . Robot Hacks Applied . | . . . . . . . . . . . . . . . . . . . . . . . . . . . . . . Relay Couplers Released 8 | . . . . . . . . . . . . . . . . . . . . . . . 6 . . . . 2 . Machine Destruction 4 | . . . . . . . . . . . . . . . . . . . . . . . 2 . . . . 2 . Programmers 4 | . . . . . . . . . . . . . . . . . . . . . . . 4 . . . . . . Fabnet Peak Effective % . | . . . . . . . . . . . . . . . . . . . . . . . . . . . . . . Robots Rewired 7 | . . . . . . . 2 . . . . . . . . . . . . . . . . . . 5 . . . Allies Hacked 4 | . . . . . . . . . . . . . . . . . . . . . . . . . . . . 4 . Hacks Repelled 1 | . . . . . . . . . . . . . . . . . . . . . . . . . . . . 1 . Allies | -11 -10 -10 -10 -9 -8 -7 -7 -7 -7 -6 -6 -6 -6 -6 -6 -6 -5 -5 -5 -5 -5 -4 -4 -4 -4 -4 -3 -3 -3 -------- Run | Yrd Mat Min Exi Min Mat Fac Low Low Dat Pro Fac Was Fac Low Low Zio Pro Fac Upp Upp Zhi Pro Fac Upp Upp War Pro Res Tes Total Allies 10 | . . 3 . . . . 2 . . . . . . . . . . . . . . . . . . 5 . . . Largest Group 5 | . . 3 . . . . 2 . . . . . . . . . . . . . . . . . . 5 5 5 . Highest-Rated Group 291 | . . 40 . . . . 60 . . . . . . . . . . . . . . . . . . 291 291 291 . Highest-Rated Ally 65 | . . 16 . . . . 30 . . . . . . . . . . . . . . . . . . 65 65 65 . Total Orders . | . . . . . . . . . . . . . . . . . . . . . . . . . . . . . . Ally Attacks 54 | . . 7 . . . . 6 . . . . . . . . . . . . . . . . . . 7 24 10 . Total Damage 2160 | . . 68 . . . . 224 . . . . . . . . . . . . . . . . . . 478 955 435 . Kills 15 | . . . . . . . . . . . . . . . . . . . . . . . . . . 4 9 2 . Allies Corrupted . | . . . . . . . . . . . . . . . . . . . . . . . . . . . . . . Allies Melted . | . . . . . . . . . . . . . . . . . . . . . . . . . . . . . . Intel | -11 -10 -10 -10 -9 -8 -7 -7 -7 -7 -6 -6 -6 -6 -6 -6 -6 -5 -5 -5 -5 -5 -4 -4 -4 -4 -4 -3 -3 -3 ------- Run | Yrd Mat Min Exi Min Mat Fac Low Low Dat Pro Fac Was Fac Low Low Zio Pro Fac Upp Upp Zhi Pro Fac Upp Upp War Pro Res Tes Robot Analysis Total 4 | . . . . . . . . . . . . . . . . . . . . . 4 . . . . . . . . Derelict Logs Recovered 11 | . . 1 . . . . 1 . . 2 . . . 2 . 1 . . 1 1 . 1 . 1 . . . . . Drone Launches . | . . . . . . . . . . . . . . . . . . . . . . . . . . . . . . Drone Recoveries . | . . . . . . . . . . . . . . . . . . . . . . . . . . . . . . Decoded 0b10 Intel 108 | . . . . . . . . . . . . . . . . . . 10 . . . . 30 . . . . 44 24 Traps 11 | . . . . . . . . . . . . . . . . . . . . . . . . . . . . 8 3 Emergency Access 2 | . . . . . . . . . . . . . . . . . . . . . . . 1 . . . . . 1 Items 83 | . . . . . . . . . . . . . . . . . . 9 . . . . 26 . . . . 30 18 Machines 7 | . . . . . . . . . . . . . . . . . . 1 . . . . 1 . . . . 4 1 Patrols 3 | . . . . . . . . . . . . . . . . . . . . . . . 1 . . . . 1 1 Guards 2 | . . . . . . . . . . . . . . . . . . . . . . . 1 . . . . 1 . Exploration | -11 -10 -10 -10 -9 -8 -7 -7 -7 -7 -6 -6 -6 -6 -6 -6 -6 -5 -5 -5 -5 -5 -4 -4 -4 -4 -4 -3 -3 -3 ------------- Run | Yrd Mat Min Exi Min Mat Fac Low Low Dat Pro Fac Was Fac Low Low Zio Pro Fac Upp Upp Zhi Pro Fac Upp Upp War Pro Res Tes Turns Passed 15234 | 59 521 417 165 64 392 758 380 225 44 502 433 120 871 734 539 1121 345 400 205 713 183 296 1061 278 351 796 557 1572 1132 Spaces Moved 12489 | 33 272 272 209 45 435 1091 603 368 75 536 298 112 780 564 422 972 293 291 177 620 150 245 593 240 280 569 449 1054 441 Core 121 | 3 . . . . . . . . . . . 93 25 . . . . . . . . . . . . . . . . Treads 449 | 30 272 147 . . . . . . . . . . . . . . . . . . . . . . . . . . . Legs 7344 | . . 17 . . . . . . . . 20 19 108 564 422 972 293 291 177 620 150 245 533 240 280 569 449 1054 321 Wheels 826 | . . . . . . . . . . . . . 647 . . . . . . . . . 60 . . . . . 119 Hover 3748 | . . 108 209 45 435 1091 603 368 75 536 278 . . . . . . . . . . . . . . . . . . Flight 1 | . . . . . . . . . . . . . . . . . . . . . . . . . . . . . 1 Fastest Speed 50 | 50 160 77 77 77 59 59 59 59 59 59 120 50 50 112 112 112 112 112 112 112 112 112 105 114 114 106 112 110 95 Average Speed 101 | 150 160 124 77 77 64 59 59 59 59 81 136 61 102 112 112 112 112 112 112 112 112 112 121 114 114 113 112 112 132 Slowest Speed 285 | 160 160 160 77 77 77 59 59 59 59 147 260 120 115 112 112 112 112 112 112 112 186 112 186 114 114 114 112 183 285 Overloaded Moves . | . . . . . . . . . . . . . . . . . . . . . . . . . . . . . . Propulsion Burnouts . | . . . . . . . . . . . . . . . . . . . . . . . . . . . . . . Robots Hopped . | . . . . . . . . . . . . . . . . . . . . . . . . . . . . . . Cave-ins Triggered . | . . . . . . . . . . . . . . . . . . . . . . . . . . . . . . Teleports 1 | . . . . . . . . . . . . . . . . . . . . . . . . . . . . . 1 Exploration Rate (%) 49 | 3 44 52 57 18 36 26 83 58 68 82 8 82 18 69 64 87 67 7 39 79 62 46 21 42 48 81 64 34 41 Regions Visited 29 Branch Regions 20 Pre-discovered Areas 10 | . . 1 1 . . . . . 1 1 . . . . . . . . . 1 3 . . 2 . . . . . Known Exits Taken 22 | . 1 1 1 1 1 1 1 . . 1 . . 1 . . 1 1 1 1 1 1 1 1 1 1 1 1 1 . Unknown Exits Taken 5 | 1 . . . . . . . 1 1 . . . . 1 1 . . . . . . . . . . . . . . Scrap Searched 25 | . . . . . . . 2 1 . 3 . . . 2 1 2 . . 1 4 . 3 . 1 3 . 2 . . Spaces Dug 138 | . . . . . . . . . . . 11 . . 53 74 . . . . . . . . . . . . . . Terrain Destroyed 1212 | . . . . . 100 49 11 . . 66 20 3 . 127 170 . 73 1 27 45 . 54 171 . 8 5 21 183 78 Melee . | . . . . . . . . . . . . . . . . . . . . . . . . . . . . . . Projectile 156 | . . . . . 2 6 1 . . 4 . 3 . . . . . 1 . 1 . 2 21 . 8 1 17 58 31 AOE 1039 | . . . . . 98 43 10 . . 61 20 . . 127 170 . 73 . 27 44 . 52 150 . . 4 4 125 31 Terrain Rammed . | . . . . . . . . . . . . . . . . . . . . . . . . . . . . . . Walls Destroyed . | . . . . . . . . . . . . . . . . . . . . . . . . . . . . . . Machines Disabled . | . . . . . . . . . . . . . . . . . . . . . . . . . . . . . . Actions | -11 -10 -10 -10 -9 -8 -7 -7 -7 -7 -6 -6 -6 -6 -6 -6 -6 -5 -5 -5 -5 -5 -4 -4 -4 -4 -4 -3 -3 -3 --------- Run | Yrd Mat Min Exi Min Mat Fac Low Low Dat Pro Fac Was Fac Low Low Zio Pro Fac Upp Upp Zhi Pro Fac Upp Upp War Pro Res Tes Total 14196 | 40 325 314 212 74 499 1178 614 375 74 575 321 135 833 615 464 1006 305 353 180 633 165 257 798 244 302 724 484 1333 764 Wait 635 | . 14 . . 30 18 45 . 8 . 13 1 3 13 8 23 1 9 35 1 3 . 1 96 . 2 14 21 190 86 Move 12462 | 32 271 271 208 44 434 1090 602 367 74 535 298 111 779 563 421 971 292 290 176 619 149 244 592 239 279 569 448 1053 441 Hop . | . . . . . . . . . . . . . . . . . . . . . . . . . . . . . . Pick Up 98 | 2 8 6 2 . 8 4 . . . 1 3 3 7 4 2 7 . 4 . 2 2 . 3 1 4 7 2 6 10 Fast Attach 148 | 6 3 . . . 4 5 . . . 1 7 . 17 2 1 8 . 4 . . 5 3 17 . 4 12 . 7 42 Attach 67 | . . 6 . . 1 1 . . . 2 . 5 2 3 . 1 . 2 . 2 1 . 6 1 1 2 . 7 24 Detach 33 | . . . . . . . . . . . . . 2 1 . 2 . 2 . . 1 . 4 . 3 7 . 2 9 Swap 66 | . 3 4 1 . 7 7 1 . . 4 2 2 1 . . 3 . 2 . 3 . . 2 2 . 6 3 4 9 Drop 142 | . 7 8 1 . 5 12 . . . 3 7 . 7 3 1 13 . 7 . 1 7 2 6 1 4 22 2 9 14 Fire 389 | . 19 19 . . 22 14 5 . . 16 3 11 5 31 15 . 4 7 3 3 . 7 65 . 5 1 8 54 72 Melee 50 | . . . . . . . . . . . . . . . . . . . . . . . 7 . . . . . 43 Ram . | . . . . . . . . . . . . . . . . . . . . . . . . . . . . . . Kick 2 | . . . . . . . . . . . . . . . . . . . . . . . . . . 1 . 1 . Crush . | . . . . . . . . . . . . . . . . . . . . . . . . . . . . . . Escape Stasis 8 | . . . . . . . . . . . . . . . . . . . . . . . . . . . . . 8 Rewire 90 | . . . . . . . 6 . . . . . . . 1 . . . . . . . . . . 83 . . . Trap . | . . . . . . . . . . . . . . . . . . . . . . . . . . . . . . Miscellaneous 6 | . . . . . . . . . . . . . . . . . . . . . . . . . . . . . 6 Route ------- -11/Scrapyard -10/Materials -10/Mines (discovered 2 exits: [*Mat] / *Exi) -10/Exiles -9/Mines -8/Materials (discovered 3 exits: *Fac / *Sto x2) -7/Factory (discovered 3 exits: *Fac / *Low x2) -7/Lower Caves -7/Lower Caves -7/Data Miner -6/Proximity Caves -6/Factory -6/Waste -6/Factory (discovered 2 exits: *Low x2) -6/Lower Caves -6/Lower Caves -6/Zion -5/Proximity Caves -5/Factory -5/Upper Caves -5/Upper Caves (discovered 2 exits: *Fac / *Zhi) -5/Zhirov -4/Proximity Caves -4/Factory (discovered 3 exits: *Upp x2 / Arm) -4/Upper Caves -4/Upper Caves -4/Warlord -3/Proximity Caves -3/Research (discovered 3 exits: [*Res] / *Tes x2) -3/Testing History --------- Turn | Location | Event 11 | -11/Scrapyard | Discovered new exit (range 16) 60 | -11/Scrapyard | Entered Materials 307 | -10/Materials | Build established: Mutant 405 | -10/Materials | Discovered new exit (range 13) 579 | -10/Materials | Identified exit to Mines 581 | -10/Materials | Entered Mines 586 | -10/Mines | Assisted by bots powering up and referring to "LRC-V3" 685 | -10/Mines | Discovered new exit (range 11) 786 | -10/Mines | Assembled infested the area 837 | -10/Mines | Lost 3 allies 850 | -10/Mines | Core integrity fell below 50% 870 | -10/Mines | Lost 5 parts (1p2n2w) 949 | -10/Mines | Learned location of Storage (-8) 995 | -10/Mines | Discovered new exit (range 5) 998 | -10/Mines | Identified exit to Exiles 998 | -10/Mines | Entered Exiles 1017 | -10/Exiles | Met 8R-AWN 1030 | -10/Exiles | Met EX-HEX 1084 | -10/Exiles | Met EX-BIN 1101 | -10/Exiles | Met EX-DEC 1105 | -10/Exiles | Learned location of Zion (-6) 1154 | -10/Exiles | Discovered new exit (range 14) 1162 | -10/Exiles | Identified exit to Mines 1163 | -10/Exiles | Entered Mines 1224 | -9/Mines | Discovered new exit (range 5) 1227 | -9/Mines | Identified exit to Materials 1227 | -9/Mines | Entered Materials 1227 | -8/Materials | Evolved 4 slots: Propulsion x2, Utility x2 1370 | -8/Materials | Discovered new exit (range 11) 1390 | -8/Materials | Identified exit to Storage 1477 | -8/Materials | Discovered exit to Storage (range 14) 1538 | -8/Materials | Destroyed 7 combat bots 1614 | -8/Materials | Discovered new exit (range 9) 1618 | -8/Materials | Identified exit to Factory 1619 | -8/Materials | Entered Factory 1619 | -7/Factory | Evolved 2 slots: Utility x1, Weapon x1 1924 | -7/Factory | Build established: Scavenger-Gunner 2144 | -7/Factory | Discovered new exit (range 7) 2152 | -7/Factory | Identified exit to Factory 2179 | -7/Factory | Identified exit to Lower Caves 2230 | -7/Factory | Build established: Gunner 2377 | -7/Factory | Entered Lower Caves 2515 | -7/Lower Caves | Identified exit to Lower Caves 2545 | -7/Lower Caves | Attracted the attention of an 0b10 outpost 2581 | -7/Lower Caves | Destroyed 9 combat bots 2636 | -7/Lower Caves | Spotted B-75 Beast 2645 | -7/Lower Caves | Build established: Tank 2757 | -7/Lower Caves | Entered another Lower Caves area 2977 | -7/Lower Caves | Discovered new exit (range 9) 2982 | -7/Lower Caves | Entered Data Miner 2982 | -7/Data Miner | Discovered new exit (range 6) 2994 | -7/Data Miner | Met Data Miner 3004 | -7/Data Miner | Learned location of Section 7 (-2) 3004 | -7/Data Miner | Acquired the access code to Warlord's prototype stash 3013 | -7/Data Miner | Received God Mode back door access code from Data Miner 3026 | -7/Data Miner | Entered Proximity Caves 3280 | -6/Proximity Caves | Learned 4 Factory zone layouts 3516 | -6/Proximity Caves | Discovered exit to Factory (range 9) 3528 | -6/Proximity Caves | Entered Factory 3528 | -6/Factory | Evolved 2 slots: Utility x1, Weapon x1 3856 | -6/Factory | Build established: Gunner 3961 | -6/Factory | Sucked down chute 3961 | -6/Factory | Entered Waste 3976 | -6/Waste | EMP discharged 3976 | -6/Waste | System corruption reached 10% 3983 | -6/Waste | Spotted C-40 Crusher 3994 | -6/Waste | Crushed by Compactor (1 part destroyed, 2 dropped) 3996 | -6/Waste | Destroyed C-40 Crusher 4008 | -6/Waste | Spotted C-40 Crusher 4021 | -6/Waste | Crushed by Compactor (1 part destroyed, 2 dropped) 4024 | -6/Waste | Crushed by Compactor (1 part destroyed, 2 dropped) 4027 | -6/Waste | Crushed by Compactor (1 part destroyed, 2 dropped) 4030 | -6/Waste | Crushed by Compactor (1 part destroyed, 1 dropped) 4033 | -6/Waste | Crushed by Compactor (1 part destroyed, 1 dropped) 4038 | -6/Waste | Spotted C-40 Crusher 4040 | -6/Waste | Spotted C-40 Crusher 4064 | -6/Waste | Lost 7 parts (1p3n2u1w) 4071 | -6/Waste | Spotted C-40 Crusher 4072 | -6/Waste | Spotted C-40 Crusher 4076 | -6/Waste | EMP discharged 4076 | -6/Waste | Discovered new exit (range 10) 4081 | -6/Waste | Entered Factory 4114 | -6/Factory | Incoming investigation squad redirected 4240 | -6/Factory | Fabricated Lgt. Regenerative Plating? 4286 | -6/Factory | Build established: Mutant 4331 | -6/Factory | Repaired Broken Hyb. Antimatter Reactor? 4861 | -6/Factory | Build established: Gunner 4878 | -6/Factory | Identified exit to Lower Caves 4952 | -6/Factory | Entered Lower Caves 5195 | -6/Lower Caves | Encountered a Warlord checkpoint 5290 | -6/Lower Caves | Attracted the attention of an 0b10 checkpoint 5643 | -6/Lower Caves | Learned Factory terminal intel 5673 | -6/Lower Caves | Discovered new exit (range 7) 5686 | -6/Lower Caves | Entered another Lower Caves area 6117 | -6/Lower Caves | Discovered new exit (range 9) 6225 | -6/Lower Caves | Entered Zion 6269 | -6/Zion | System corruption cleaned by Quarantine Array 6307 | -6/Zion | Found Prototype Processor 6307 | -6/Zion | Identified Exp. Targeting Computer 6310 | -6/Zion | Found Prototype Processor 6310 | -6/Zion | Identified Exp. Signal Interpreter 6314 | -6/Zion | Found Prototype Processor 6314 | -6/Zion | Identified Spectral Analyzer 6321 | -6/Zion | Found Prototype Hackware 6321 | -6/Zion | Identified Exp. System Shield 6397 | -6/Zion | Given A8's code to call for help 6399 | -6/Zion | Discovered new exit (range 8) 6583 | -6/Zion | Visited the Megawrench Repair Shop 6583 | -6/Zion | Megawrench repaired 8 parts 6705 | -6/Zion | Learned location of 1 exit from Lower Caves 6726 | -6/Zion | Found Prototype Special Weapon 6728 | -6/Zion | Found Prototype Special Weapon 6732 | -6/Zion | Found Prototype Special Weapon 6735 | -6/Zion | Found Prototype Special Weapon 6735 | -6/Zion | Identified RU-N14's Throwing Claymores (x4) 7345 | -6/Zion | Identified exit to Proximity Caves 7346 | -6/Zion | Entered Proximity Caves 7681 | -5/Proximity Caves | Discovered new exit (range 10) 7690 | -5/Proximity Caves | Identified exit to Factory 7691 | -5/Proximity Caves | Entered Factory 7691 | -5/Factory | Evolved 2 slots: Power x1, Utility x1 7692 | -5/Factory | Identified exit to Upper Caves 7693 | -5/Factory | Loaded intel: 28 terminal locations 8091 | -5/Factory | Entered Upper Caves 8264 | -5/Upper Caves | Learned Factory terminal intel 8280 | -5/Upper Caves | Discovered new exit (range 15) 8294 | -5/Upper Caves | Identified exit to Upper Caves 8296 | -5/Upper Caves | Entered another Upper Caves area 8309 | -5/Upper Caves | Discovered new exit (range 13) 8320 | -5/Upper Caves | Attracted the attention of an 0b10 checkpoint 8331 | -5/Upper Caves | Identified exit to Factory 8430 | -5/Upper Caves | Encountered a Warlord checkpoint 8610 | -5/Upper Caves | Spotted B-75 Beast 8911 | -5/Upper Caves | Learned location of Warlord (-4) 9004 | -5/Upper Caves | Discovered new exit (range 5) 9008 | -5/Upper Caves | Identified exit to Zhirov 9009 | -5/Upper Caves | Entered Zhirov 9009 | -5/Zhirov | Discovered new exit (range 3) 9011 | -5/Zhirov | Identified exit to Proximity Caves 9030 | -5/Zhirov | Met Zhirov 9050 | -5/Zhirov | Learned location of Quarantine (-2) 9050 | -5/Zhirov | Learned location of Testing (-3) 9050 | -5/Zhirov | Learned location of Command (-1) 9072 | -5/Zhirov | Zhirov requested help retrieving the SGEMP Prototype 9095 | -5/Zhirov | Found Alien Artifact 9095 | -5/Zhirov | Identified Integrated Reactor 9095 | -5/Zhirov | Installed Integrated Reactor, increased core energy generation (+10) 9150 | -5/Zhirov | Found Alien Artifact 9192 | -5/Zhirov | Entered Proximity Caves 9254 | -4/Proximity Caves | Learned Research stockpile data 9465 | -4/Proximity Caves | Discovered exit to Factory (range 14) 9488 | -4/Proximity Caves | Entered Factory 9488 | -4/Factory | Evolved 2 slots: Propulsion x1, Utility x1 9489 | -4/Factory | Loaded intel: 26 terminal locations 9585 | -4/Factory | Identified exit to Upper Caves 9585 | -4/Factory | Identified exit to Armory 9804 | -4/Factory | Build established: Hacker-Gunner 9933 | -4/Factory | Destroyed 7 combat bots 9983 | -4/Factory | Lost 3 parts (1p1n1w) 10119 | -4/Factory | Fabricated Lgt. Regenerative Plating? 10549 | -4/Factory | Entered Upper Caves 10575 | -4/Upper Caves | Learned Extension emergency access door positions 10575 | -4/Upper Caves | Learned Armory emergency access door positions 10575 | -4/Upper Caves | Learned Armory garrison access intel 10593 | -4/Upper Caves | Learned Research emergency access door positions 10810 | -4/Upper Caves | Discovered new exit (range 11) 10826 | -4/Upper Caves | Identified exit to Upper Caves 10827 | -4/Upper Caves | Entered another Upper Caves area 11124 | -4/Upper Caves | Attracted the attention of an 0b10 outpost 11167 | -4/Upper Caves | Discovered new exit (range 11) 11177 | -4/Upper Caves | Identified exit to Warlord 11178 | -4/Upper Caves | Entered Warlord 11217 | -4/Warlord | System corruption cleaned by Quarantine Array 11234 | -4/Warlord | Build established: Derelict-Tank 11466 | -4/Warlord | Visited the Vortex Lab 11470 | -4/Warlord | Found Prototype Energy Gun 11470 | -4/Warlord | Identified Vortex Shotgun 11473 | -4/Warlord | Warlord's base attacked by MAIN.C 11474 | -4/Warlord | Found Vortex Shotgun 11479 | -4/Warlord | Found Prototype Energy Gun 11479 | -4/Warlord | Identified Vortex Rail 11482 | -4/Warlord | Found Vortex Rail 11599 | -4/Warlord | Found Prototype Device 11599 | -4/Warlord | Identified Minesniffer Drone Bay 11642 | -4/Warlord | Build established: Commander-Tank 11714 | -4/Warlord | Met Warlord 11725 | -4/Warlord | Opened Warlord's prototype stash 11749 | -4/Warlord | Found Prototype Reactor 11749 | -4/Warlord | Identified Vortex Chain Reactor 11760 | -4/Warlord | Found Prototype Device 11760 | -4/Warlord | Identified Thermal Barrier 11763 | -4/Warlord | Found Prototype Processor 11763 | -4/Warlord | Identified Exp. Target Analyzer 11767 | -4/Warlord | Found Prototype Hackware 11767 | -4/Warlord | Identified System Mapper 11823 | -4/Warlord | Warlord forces counterattacked 11870 | -4/Warlord | Spotted B-90 Cyclops 11872 | -4/Warlord | Spotted B-86 Titan 11902 | -4/Warlord | Spotted Striker 11950 | -4/Warlord | Discovered new exit (range 12) 11973 | -4/Warlord | Identified exit to Proximity Caves 11973 | -4/Warlord | Spotted Executioner 11974 | -4/Warlord | Entered Proximity Caves 11974 | -3/Proximity Caves | Accompanied by 5 allies 12022 | -3/Proximity Caves | Build established: Hacker-Gunner 12076 | -3/Proximity Caves | Attracted the attention of an 0b10 checkpoint 12508 | -3/Proximity Caves | Discovered new exit (range 5) 12512 | -3/Proximity Caves | Identified exit to Research 12531 | -3/Proximity Caves | Entered Research 12531 | -3/Research | Accompanied by 5 allies 12531 | -3/Research | Evolved 2 slots: Utility x2 12844 | -3/Research | Spotted B-86 Titan 12854 | -3/Research | Destroyed B-86 Titan 12893 | -3/Research | Lost 3 allies 12990 | -3/Research | Repaired Myomer Leg 13125 | -3/Research | Repaired Adv. KE Penetrator 13371 | -3/Research | P-80 Master assimilated allied Archangel 7a 13434 | -3/Research | Identified exit to Testing 13636 | -3/Research | Discovered new exit (range 10) 14103 | -3/Research | Entered Testing 14174 | -3/Testing | Found Prototype Ballistic Cannon 14174 | -3/Testing | Identified Perforator 14219 | -3/Testing | Found Gamma Bomb Array 14408 | -3/Testing | Build established: Hacker-Tank 14460 | -3/Testing | Spotted Striker 14469 | -3/Testing | Spotted Striker 14474 | -3/Testing | Spotted Alpha 7 14477 | -3/Testing | Destroyed Striker 14491 | -3/Testing | Destroyed Striker 14523 | -3/Testing | Lost 5 parts (3n2w) 14640 | -3/Testing | Stole the SGEMP Prototype 14661 | -3/Testing | Scanned by Researcher 14662 | -3/Testing | System corruption reached 10% 14722 | -3/Testing | Lost 8 parts (2p2n2u2w) 14845 | -3/Testing | Lost 5 parts (2n3u) 14898 | -3/Testing | Lost 3 parts (1p2u) 14907 | -3/Testing | Core integrity fell below 50% 14975 | -3/Testing | Core integrity fell below 20% 15007 | -3/Testing | Lost 14 parts (3p3n3u5w) 15061 | -3/Testing | Repaired Lrg. Storage Unit 15163 | -3/Testing | Identified Transdimensional Reconstructor 15163 | -3/Testing | Warped through subspace 15174 | -3/Testing | Found Prototype Energy Cannon 15174 | -3/Testing | Identified Disintegrator 15193 | -3/Testing | Lost 6 parts (2n1u3w) 15193 | -3/Testing | Spotted PD-WC84BKQ5D0 15235 | -3/Testing | Destroyed by PD-WC84BKQ5D0 with Advanced Micro-nuke Launcher Last Messages --------------- 15160_ Adv. Heat Sink destroyed. 15160_ Flexi-carbon Leg destroyed. 15160_ Held in stasis. 15160_ C-55 Analyst is analyzing... 15162_ Plasma Rifle destroyed. 15163_ Identified Transdimensional Reconstructor. 15163_ Warped through subspace. 15166_ System corrupted: Matter fused (-10). 15169_ Reinforced Shell breached. 15174_ Acquired Prototype Energy Cannon. 15174_ Identified Disintegrator. 15196_ >> DECODED: Nova Cannon location. 15202_ Acquired Hyp. Gauss Cannon. 15214_ Q713-i suffers critical hit (Impale). 15214_ Destroyed Unknown Leg. 15217_ >> DECODED: Mic. Antimatter Reactor location. 15225_ KZMKPWVADS8F ACX NWM& 15230_ Acquired Hyp. Gauss Cannon. Map ----- +----------------------------------------------------+ | ?????????????????????????????????????????????????? | | ?????????????????????????????????????????????????? | | ?????????????????????????????????????????????????? | | ?????????????????????????????????????????????????? | | ?????????????????????????????????????????????????? | | ?????????????????????????????????????????????????? | | ?????????????????????????????????????????????????? | | ?????????????????????????????????????????????????? | | ?????????????????????????????????????????????????? | | ?????????????????????????????????????????????????? | | ?????????????????????????????????????????????????? | | ????????????????? ##?????????????????????????????? | | ??############### ###?!??*???????????????????????? | | ################# ###????????]???????????????????? | | #### = ^ # ???????????????????????????? | | ^ # ???????????????????????????? | | # ???????????????????????????? | | # # ???????????????????????????? | | # # ???????????????????????????? | | " # ######?????????????? | | " " Q ######+##########????????????? | | "! " ###????????????? | | " "" ????????????? | | "" """ """????????????? | | """ """ T"????????????? | | ##### """ #####+### @ """ """##??????????? | | ##### """ ## # "" ######??????? | | ???## ## # """ #########??????? | | ???## ?## """" #d """ # """""##??????? | | ???## ## """" + """ # """"##??????? | | ## "" " # + " "##??????? | | ##### ## "" # # " ""###??????? | | #####+########## " ######## # " ###??????? | | ??? ###### "" ######## # " ""##???????? | | ????? ????????## """" ##????## ########???????? | | ????? ????????## """ ##????############?????????? | | ????? ????????## ##????########?????????????? | | ??????????????## ##?????????????????????????? | | ??????????????## ##?????????????????????????? | | ??????????????##########?????????????????????????? | | ???????????????########??????????????????????????? | | ?????????????????????????????????????????????????? | | ?????????????????????????????????????????????????? | | ?????????????????????????????????????????????????? | | ?????????????????????????????????????????????????? | | ?????????????????????????????????????????????????? | | ?????????????????????????????????????????????????? | | ?????????????????????????????????????????????????? | | ?????????????????????????????????????????????????? | | ?????????????????????????????????????????????????? | +----------------------------------------------------+ Best States ------------- Heat Dissipation 84 Energy Generation 65 Energy Capacity 1100 Matter Stores 300 Matter Capacity 550 Sight Range 16 Terrain Scan Density 10 Cloak Strength 3 Corruption Block 20 Armor Coverage 750 Resistance: KI 30 Resistance: TH 50 Utility Shielding 33 Weapon Cycling 20 Evasion (%) 55 Targeting Accuracy 6 Target Analysis 10 Core Analysis 6 Armor Integrity Analysis 40 Recoil Reduction 2 Matter Filtering 30 Offensive Hacking 20 Defensive Hacking 30 Item Schematics ----------------- Combat Drone Bay | -7/Data Miner | Free Lgt. Regenerative Plating | -7/Data Miner | Free Cld. Cesium-ion Thruster | -7/Data Miner | Free Thermal Defense Suite | -7/Data Miner | Free Com. Ion Cannon | -7/Data Miner | Free Nuclear Pulse Array | -7/Data Miner | Free Imp. Weapon Cycler | -7/Data Miner | Free Hvy. Phase Cannon | -7/Data Miner | Free Lgt. Fission Core | -7/Data Miner | Free Field Propulsion Drive | -7/Data Miner | Free Adv. VSS Leg | -7/Data Miner | Free Adv. Reaction Control System | -7/Data Miner | Free Remote Shield | -6/Zion | Archive Adv. Cooling System | -6/Zion | Archive Magnetic Acceleration Cannon | -6/Zion | Archive Mni. Drone Bay | -6/Zion | Archive Imp. Arc Projector | -6/Zion | Archive Energy Well | -6/Zion | Archive Adv. Transmission Jammer | -6/Zion | Archive Matter Neutralizer | -6/Zion | Archive Fission Core | -6/Zion | Archive Enh. Gauss Cannon | -6/Zion | Archive Hvy. Flak Cannon | -6/Zion | Archive KE Penetrator | -6/Zion | Archive Imp. Cryofiber Web | -6/Zion | Archive Imp. Remote Datajack | -6/Zion | Archive Hpw. Shock Rifle | -6/Zion | Archive Assault Drone Bay | -5/Zhirov | Free Exp. Heat Sink | -5/Zhirov | Free Exp. Optical Array | -5/Zhirov | Free Imp. Arc Thrower | -5/Zhirov | Free Robot Schematics ------------------ L-41 Fighter | -7/Data Miner | Free H-66 Slayer | -7/Data Miner | Free M-14 Sweeper | -7/Data Miner | Free B-48 Gladiator | -7/Data Miner | Free R-10 Processor | -7/Data Miner | Free G-50 Soldier | -7/Data Miner | Free A-15 Conveyor | -6/Zion | Archive A-02 Transporter | -6/Zion | Archive Fabricated ------------ Lgt. Regenerative Plating | x1 | -6/Factory Alien Tech Used ----------------- Integrated Reactor Transdimensional Reconstructor Achievements -------------- None Challenges ------------ None Game ------ Seed ThrusterGaussSteel Manual? 0 Play Time 02:32:27 Cumulative 190.3 hours Start 2024.05.17 @ 17:33:19 End 2024.05.17 @ 21:37:35 Sessions 1 Manual Loads 0 Difficulty Rogue Special Mode None Game No. 183 Rogue 178 Adventurer 5 Explorer 0 Win Type - Total 3 Types 2/0/0/1/0/0/0/0/0 Lore% 54 Gallery% 75 Achievement% 56 Wizard Run 0 Options --------- Layout 2 ASCII 0 Keyboard 0 Movement Mouse Keybinds 0 Fullscreen 1 Font 24/Terminus Map View 50x44 Zoom Use 0% Tactical HUD 1 Map Filters NONE Filters NONE Steam 1 RUN: 8bff3317-81aa-4aa3-8ffe-eb6aa8d056c7